bitfinex-derivatives/quotes_BTCF0:USTF0_20251130
["timestamp","ask_amount","ask_price","bid_price","bid_amount"]
[1764524238650,0.05398065,91372.0,91371.0,0.04367]
[1764524238856,0.04484,91370.0,91369.0,0.01330254]
[1764524239057,0.04484,91367.0,91366.0,0.00027363]
[1764524239457,0.04484,91367.0,91366.0,0.0569758]
[1764524240659,0.04484,91367.0,91366.0,0.0589758]
[1764524245561,0.02196,91367.0,91366.0,0.0589758]
[1764524245956,0.04461,91367.0,91366.0,0.0589758]
[1764524246373,0.0555556,91367.0,91366.0,0.0589758]
[1764524247260,0.04461,91367.0,91366.0,0.0589758]
[1764524248569,0.02196,91367.0,91366.0,0.0589758]
[1764524249066,0.3608,91373.0,91372.0,0.068025]
[1764524249067,0.4067,91373.0,91372.0,0.068025]
[1764524249568,0.38405,91373.0,91372.0,0.068025]
[1764524250469,0.38505,91373.0,91372.0,0.068025]
[1764524250766,0.3618,91373.0,91372.0,0.498025]
[1764524254481,0.001,91373.0,91372.0,0.498025]
[1764524255160,0.0469,91373.0,91372.0,0.498025]
[1764524260373,0.001,91373.0,91372.0,0.498025]
[1764524260573,0.001,91373.0,91372.0,0.49907606]
[1764524260974,0.001,91373.0,91372.0,0.49918585]
[1764524261471,0.00016417,91379.0,91378.0,0.0541543]
[1764524261681,0.00016417,91379.0,91378.0,0.4441543]
[1764524261883,0.00016417,91379.0,91378.0,0.44553473]
[1764524262072,0.02341417,91379.0,91378.0,0.44553473]
[1764524262272,0.02341417,91379.0,91378.0,0.44564452]
[1764524262776,0.02341417,91379.0,91378.0,0.44575431]
[1764524262974,0.02541417,91379.0,91378.0,0.44575431]
[1764524263283,0.02541417,91379.0,91378.0,0.4458641]
[1764524263587,0.02541417,91379.0,91378.0,0.44597389]
[1764524263983,0.02541417,91379.0,91378.0,0.44608368]
[1764524264274,0.00216417,91379.0,91378.0,0.44619347]
[1764524264681,0.00216417,91379.0,91378.0,0.05626909]
[1764524266682,0.02452417,91379.0,91378.0,0.05626909]
[1764524271593,0.02452417,91379.0,91378.0,0.41706909]
[1764524272389,0.02452417,91379.0,91378.0,0.05626909]
[1764524272592,0.02452417,91379.0,91378.0,0.41706909]
[1764524273787,0.00216417,91379.0,91378.0,0.41706909]
[1764524274490,0.40453,91391.0,91390.0,0.0555028]
[1764524274696,0.40453,91391.0,91390.0,0.05761759]
[1764524275492,0.40953,91391.0,91390.0,0.05861759]
[1764524276186,0.41053,91391.0,91390.0,0.05861759]
[1764524278695,0.04973,91391.0,91390.0,0.05861759]
[1764524279596,0.006,91391.0,91390.0,0.05861759]
[1764524281694,0.02836,91391.0,91390.0,0.05861759]
[1764524281893,0.04973,91391.0,91390.0,0.05861759]
[1764524282594,0.02836,91391.0,91390.0,0.05861759]
[1764524283896,0.02836,91391.0,91390.0,0.17971759]
[1764524285489,0.04973,91391.0,91390.0,0.17971759]
[1764524288807,0.006,91391.0,91390.0,0.17971759]
[1764524289011,0.00016417,91400.0,91399.0,0.0555018]
[1764524289708,0.00016417,91400.0,91399.0,0.05761659]
[1764524290214,0.40453,91411.0,91410.0,0.0555004]
[1764524291013,0.40453,91411.0,91410.0,0.05761519]
[1764524291413,0.41253,91411.0,91410.0,0.05861519]
[1764524292109,0.41353,91411.0,91410.0,0.05861519]
[1764524292506,0.009,91411.0,91410.0,0.05861519]
[1764524292705,0.00016417,91420.0,91419.0,0.0554994]
[1764524292906,0.04373,91432.0,91431.0,0.0554979]
[1764524293819,0.04373,91432.0,91431.0,0.05761269]
[1764524294118,0.04373,91432.0,91431.0,0.05961269]
[1764524294506,0.04373,91432.0,91431.0,0.03689269]
[1764524294701,0.04373,91432.0,91431.0,0.05921269]
[1764524296512,0.04373,91432.0,91431.0,0.05721269]
[1764524296717,0.04522407,91441.0,91440.0,0.0555169]
[1764524296905,0.04522407,91441.0,91440.0,0.05763169]
[1764524297618,0.04522407,91441.0,91440.0,0.00211479]
[1764524297918,0.04622407,91441.0,91440.0,0.02437479]
[1764524298210,0.04622407,91441.0,91440.0,0.02537479]
[1764524299821,0.04622407,91441.0,91440.0,0.06073934]
[1764524300120,0.04622407,91441.0,91440.0,0.01615934]
[1764524303720,0.16917932,91441.0,91440.0,0.01615934]
[1764524313726,0.16917932,91441.0,91440.0,0.01627069]
[1764524314328,0.19863712,91441.0,91440.0,0.01638204]
[1764524314730,0.19863712,91441.0,91440.0,0.01649339]
[1764524315033,0.19863712,91441.0,91440.0,0.01660474]
[1764524315537,0.19863712,91441.0,91440.0,0.01671609]
[1764524315936,0.19863712,91441.0,91440.0,0.01682744]
[1764524316238,0.19863712,91441.0,91440.0,0.06127879]
[1764524316432,0.19863712,91441.0,91440.0,0.01693879]
[1764524316633,0.19863712,91441.0,91440.0,0.01705014]
[1764524317329,0.19863712,91441.0,91440.0,0.01716149]
[1764524317529,0.19863712,91441.0,91440.0,0.01727284]
[1764524317929,0.19863712,91441.0,91440.0,0.01738419]
[1764524322736,0.07580838,91441.0,91440.0,0.06172419]
[1764524324338,0.03074838,91441.0,91440.0,0.07564419]
[1764524324538,0.03074838,91441.0,91440.0,0.07575987]
[1764524325045,0.03074838,91441.0,91440.0,0.07587555]
[1764524325336,0.05241838,91441.0,91440.0,0.07599123]
[1764524325535,0.07383838,91441.0,91440.0,0.07599123]
[1764524325735,0.07383838,91441.0,91440.0,0.07610691]
[1764524326438,0.07383838,91441.0,91440.0,0.07622259]
[1764524326644,0.07383838,91441.0,91440.0,0.07633827]
[1764524327029,0.05241838,91441.0,91440.0,0.07645395]
[1764524327433,0.07383838,91441.0,91440.0,0.07656963]
[1764524327841,0.07383838,91441.0,91440.0,0.07668531]
[1764524328745,0.07383838,91441.0,91440.0,0.07680099]
[1764524329142,0.07383838,91441.0,91440.0,0.07691667]
[1764524330040,0.07383838,91441.0,91440.0,0.07703235]
[1764524330835,0.07383838,91441.0,91440.0,0.06311235]
[1764524331346,0.07383838,91441.0,91440.0,0.07404925]
[1764524335247,0.04425407,91441.0,91440.0,0.07404925]
[1764524336450,0.04425407,91441.0,91440.0,0.08796925]
[1764524336950,0.02283407,91441.0,91440.0,0.08796925]
[1764524337855,0.00116407,91441.0,91440.0,0.08796925]
[1764524338250,0.00027339,91446.0,91445.0,0.0692063]
[1764524338450,0.22805,91460.0,91459.0,0.0552846]
[1764524338653,0.24492629,91460.0,91459.0,0.0552846]
[1764524339041,0.24492629,91460.0,91459.0,0.0600124]
[1764524339257,0.07268629,91460.0,91459.0,0.0600124]
[1764524340152,0.38247,91462.0,91461.0,0.04435]
[1764524340352,0.3608,91462.0,91461.0,0.04435]
[1764524341159,0.40389,91462.0,91461.0,0.0490778]
[1764524341659,0.40689,91462.0,91461.0,0.0490778]
[1764524343750,0.40789,91462.0,91461.0,0.0490778]
[1764524347567,0.04709,91462.0,91461.0,0.0490778]
[1764524348577,0.02567,91462.0,91461.0,0.0490778]
[1764524349177,0.00147209,91462.0,91461.0,0.0490778]
[1764524349779,0.02177667,91469.0,91468.0,0.04435]
[1764524349968,0.02177667,91469.0,91468.0,0.0552835]
[1764524350168,0.04319667,91469.0,91468.0,0.0600113]
[1764524350978,0.04419667,91469.0,91468.0,0.0600113]
[1764524351177,0.04819667,91469.0,91468.0,0.0600113]
[1764524351379,0.00510667,91469.0,91468.0,0.0600113]
[1764524352273,1e-08,91469.0,91468.0,0.4208113]
[1764524353068,0.02142,91469.0,91468.0,0.4098778]
[1764524353277,0.04309,91469.0,91468.0,0.0186613]
[1764524354978,0.04309,91469.0,91468.0,0.0400013]
[1764524356670,0.04309,91469.0,91468.0,0.0290678]
[1764524356880,0.09309,91469.0,91468.0,0.0077278]
[1764524357879,0.04309,91469.0,91468.0,0.0077278]
[1764524359073,0.04309,91469.0,91468.0,0.0308878]
[1764524361682,0.04309,91469.0,91468.0,0.0528178]
[1764524363985,0.04309,91469.0,91468.0,0.0308878]
[1764524364581,0.07262129,91469.0,91468.0,0.0308878]
[1764524364980,0.07262129,91469.0,91468.0,0.0521978]
[1764524366488,0.07262129,91469.0,91468.0,0.0077278]
[1764524366788,0.07262129,91469.0,91468.0,0.0294278]
[1764524367089,0.07262129,91469.0,91468.0,0.0507378]
[1764524372992,0.07262129,91469.0,91468.0,0.05088546]
[1764524373494,0.07262129,91469.0,91468.0,0.05103312]
[1764524373686,9e-08,91469.0,91468.0,0.05888312]
[1764524373887,0.04345327,91486.0,91485.0,0.0539415]
[1764524374291,0.04345327,91486.0,91485.0,0.05911228]
[1764524374791,0.04345327,91486.0,91485.0,0.05925994]
[1764524375191,0.04345327,91486.0,91485.0,0.0594076]
[1764524375387,0.04345327,91486.0,91485.0,0.0604076]
[1764524375579,0.04345327,91486.0,91485.0,0.06055526]
[1764524375985,0.04345327,91486.0,91485.0,0.06070292]
[1764524376387,0.00027327,91486.0,91485.0,0.06085058]
[1764524376787,0.00027327,91486.0,91485.0,0.06099824]
[1764524377188,0.00027327,91486.0,91485.0,0.0611459]
[1764524377594,0.00027327,91486.0,91485.0,0.06117075]
[1764524377991,0.0213,91507.0,91506.0,0.053939]
[1764524378191,0.3717275,91519.0,91506.0,0.053939]
[1764524378192,0.3608,91519.0,91506.0,0.053939]
[1764524378490,0.40398,91519.0,91518.0,0.04301]
[1764524378686,0.04318,91513.0,91512.0,0.04923925]
[1764524379989,0.04318,91513.0,91512.0,0.05623925]
[1764524380598,0.04318,91513.0,91512.0,0.06716745]
[1764524381994,0.04318,91513.0,91512.0,0.06616745]
[1764524383889,0.01324,91525.0,91512.0,0.06616745]
[1764524383890,0.01324,91525.0,91524.0,0.04482]
[1764524384088,0.04621315,91526.0,91525.0,0.0557467]
[1764524384401,0.04621315,91526.0,91525.0,0.04482]
[1764524384603,0.04621315,91526.0,91525.0,0.05104925]
[1764524385302,0.04621315,91526.0,91525.0,0.06607384]
[1764524387105,0.04621315,91526.0,91525.0,0.02125384]
[1764524389199,0.04621315,91526.0,91525.0,0.04356384]
[1764524390206,0.04621315,91526.0,91525.0,0.04353014]
[1764524390704,0.04621315,91526.0,91525.0,0.02122014]
[1764524390904,0.04621315,91526.0,91525.0,0.04353014]
[1764524391800,0.04621315,91526.0,91525.0,0.06604014]
[1764524394612,0.04621315,91526.0,91525.0,0.04353014]
[1764524395509,0.04621315,91526.0,91525.0,0.02122014]
[1764524395715,0.16545737,91526.0,91525.0,0.02122014]
[1764524395911,0.18545737,91526.0,91525.0,0.02122014]
[1764524397520,0.61449321,91526.0,91525.0,0.00144554]
[1764524399322,0.04594,91516.0,91515.0,0.00016398]
[1764524399524,0.43577584,91516.0,91515.0,0.00016398]
[1764524399724,0.56237441,91516.0,91515.0,0.00016398]
[1764524400024,0.57330221,91516.0,91515.0,0.00016398]
[1764524400323,0.57330221,91516.0,91515.0,0.01261193]
[1764524400822,0.57330221,91516.0,91515.0,0.01661193]
[1764524401319,0.57330221,91516.0,91515.0,0.01561193]
[1764524401626,0.57330221,91516.0,91515.0,0.06043193]
[1764524401820,0.57330221,91516.0,91515.0,0.03492193]
[1764524402122,0.57330221,91516.0,91515.0,0.03692193]
[1764524402323,0.57330221,91516.0,91515.0,0.01461193]
[1764524403224,0.57330221,91516.0,91515.0,0.05943193]
[1764524403423,0.57330221,91516.0,91515.0,0.05743193]
[1764524403623,0.57330221,91516.0,91515.0,0.05943193]
[1764524404025,0.57330221,91516.0,91515.0,0.05743193]
[1764524404223,0.57330221,91516.0,91515.0,0.05943193]
[1764524404620,0.57330221,91516.0,91515.0,0.05743193]
[1764524404817,0.57330221,91516.0,91515.0,0.05943193]
[1764524405323,0.57330221,91516.0,91515.0,0.01461193]
[1764524406629,0.57330221,91516.0,91515.0,0.01261193]
[1764524406831,0.57330221,91516.0,91515.0,0.01461193]
[1764524407925,0.57330221,91516.0,91515.0,0.05743193]
[1764524408132,0.57330221,91516.0,91515.0,0.05943193]
[1764524409232,0.57330221,91516.0,91515.0,0.03692193]
[1764524409429,0.57330221,91516.0,91515.0,0.01461193]
[1764524413041,0.57330221,91516.0,91515.0,0.05943193]
[1764524413238,0.57330221,91516.0,91515.0,0.01461193]
[1764524416036,0.57330221,91516.0,91515.0,0.05939193]
[1764524419649,0.56237441,91516.0,91515.0,0.05939193]
[1764524420634,0.43577584,91516.0,91515.0,0.07254193]
[1764524421042,0.02903584,91516.0,91515.0,0.07254193]
[1764524421239,0.04529,91524.0,91523.0,0.0557069]
[1764524421442,0.0744887,91524.0,91523.0,0.0557069]
[1764524421643,0.0291987,91524.0,91523.0,0.0557069]
[1764524422349,0.0514887,91524.0,91523.0,0.0557069]
[1764524422550,0.0524887,91524.0,91523.0,0.0557069]
[1764524423151,3.15e-06,91526.0,91525.0,0.05803]
[1764524423450,0.3608,91536.0,91535.0,0.05286]
[1764524423747,0.38998966,91536.0,91535.0,0.05286]
[1764524424049,0.41299966,91536.0,91535.0,0.05286]
[1764524424343,0.43587966,91536.0,91535.0,0.0558355]
[1764524425448,0.43887966,91536.0,91535.0,0.0558355]
[1764524427149,0.44809966,91536.0,91535.0,0.0558355]
[1764524427450,0.41891,91536.0,91535.0,0.0558355]
[1764524427750,0.40969,91536.0,91535.0,0.0558355]
[1764524428153,0.05938,91550.0,91549.0,0.0558338]
[1764524428343,0.07498733,91550.0,91549.0,0.0558338]
[1764524428542,0.19777655,91550.0,91549.0,0.0558338]
[1764524428743,0.04589,91550.0,91549.0,0.0558338]
[1764524429852,0.04589,91550.0,91549.0,0.04691]
[1764524430153,0.04589,91550.0,91549.0,0.05691]
[1764524430452,0.04589,91550.0,91549.0,0.05491]
[1764524431453,0.40669,91556.0,91555.0,0.04491]
[1764524432046,0.40669,91556.0,91555.0,0.0558331]
[1764524432652,0.40869,91556.0,91555.0,0.0558331]
[1764524432845,0.38581,91556.0,91555.0,0.0558331]
[1764524433046,0.02501,91556.0,91555.0,0.0558331]
[1764524433253,0.002,91556.0,91555.0,0.0558331]
[1764524433655,0.02501,91556.0,91555.0,0.0558331]
[1764524433854,0.04789,91556.0,91555.0,0.0558331]
[1764524441458,0.04789,91556.0,91555.0,0.0109231]
[1764524441654,0.04789,91556.0,91555.0,0.0558331]
[1764524442757,0.04789,91556.0,91555.0,0.04491]
[1764524445559,0.04789,91556.0,91555.0,0.05885]
[1764524446665,0.002,91556.0,91555.0,0.05885]
[1764524446874,0.3608,91565.0,91564.0,0.055362]
[1764524447168,0.0453,91585.0,91584.0,0.04444]
[1764524447369,0.4061,91585.0,91584.0,0.04444]
[1764524448270,0.4061,91585.0,91584.0,0.03252612]
[1764524448967,0.4061,91585.0,91584.0,0.03452612]
[1764524450162,0.43516065,91585.0,91584.0,0.03452612]
[1764524450364,0.43516065,91585.0,91584.0,0.05644612]
[1764524450575,0.43516065,91585.0,91584.0,0.07896612]
[1764524452372,0.43516065,91585.0,91584.0,0.05644612]
[1764524454569,0.43516186,91585.0,91584.0,0.05644612]
[1764524455358,0.43516186,91585.0,91584.0,0.07896612]
[1764524455768,0.43516186,91585.0,91584.0,0.05644612]
[1764524456073,0.43516186,91585.0,91584.0,0.03452612]
[1764524457384,0.44894186,91585.0,91584.0,0.05644612]
[1764524457967,0.44894186,91585.0,91584.0,0.03452612]
[1764524458165,0.44894186,91585.0,91575.0,0.00016378]
[1764524458166,0.0562206,91576.0,91575.0,0.00016378]
[1764524458371,0.12528246,91576.0,91575.0,0.01385109]
[1764524458568,0.12528246,91576.0,91575.0,0.00016378]
[1764524459976,0.08528246,91576.0,91575.0,0.00016378]
[1764524460378,0.09528246,91576.0,91575.0,0.00016378]
[1764524460779,0.09528246,91576.0,91575.0,0.01400052]
[1764524460982,0.09528246,91576.0,91575.0,0.00016378]
[1764524462577,0.09528246,91576.0,91555.0,0.1211]
[1764524462578,0.0453,91556.0,91555.0,0.1764631]
[1764524462878,0.0453,91556.0,91555.0,0.0553631]
[1764524463270,0.07412224,91556.0,91555.0,0.05800359]
[1764524463869,0.08612224,91556.0,91555.0,0.05800359]
[1764524464083,0.08712224,91556.0,91555.0,0.05800359]
[1764524464779,0.0583,91556.0,91555.0,0.05800359]
[1764524467290,0.0583,91556.0,91555.0,0.06892669]
[1764524467885,0.0583,91556.0,91555.0,0.08286669]
[1764524469276,0.0583,91556.0,91555.0,0.05800359]
[1764524469483,0.0583,91556.0,91555.0,0.08286669]
[1764524470381,0.069223,91556.0,91555.0,0.08286669]
[1764524471483,0.069223,91556.0,91555.0,0.07194359]
[1764524472085,0.069223,91556.0,91555.0,0.05800359]
[1764524473698,0.069223,91556.0,91555.0,0.07112359]
[1764524479803,0.069223,91556.0,91555.0,0.01356359]
[1764524480102,0.0539641,91547.0,91546.0,0.04310378]
[1764524480693,0.0539641,91547.0,91546.0,0.05672126]
[1764524480900,0.04304,91534.0,91525.0,0.3608]
[1764524481104,0.0539665,91527.0,91526.0,0.02168315]
[1764524481300,0.04304,91527.0,91526.0,0.04321315]
[1764524481896,0.04304,91527.0,91526.0,0.05712546]
[1764524482900,0.04704,91527.0,91526.0,0.05712546]
[1764524484005,0.05104,91527.0,91526.0,0.05712546]
[1764524491111,0.008,91527.0,91526.0,0.05712546]
[1764524491309,0.00016387,91536.0,91535.0,0.05793]
[1764524492615,0.00116387,91536.0,91535.0,0.05793]
[1764524493114,0.00916387,91536.0,91535.0,0.05793]
[1764524495909,0.05456387,91536.0,91535.0,0.05793]
[1764524496115,0.03157387,91536.0,91535.0,0.05793]
[1764524496314,0.00916387,91536.0,91535.0,0.05793]
[1764524502322,0.00916387,91536.0,91535.0,0.41873]
[1764524507422,0.05325387,91536.0,91535.0,0.41873]
[1764524508125,0.00916387,91536.0,91535.0,0.41873]
[1764524508622,0.05325387,91536.0,91535.0,0.41873]
[1764524508823,0.05325387,91536.0,91535.0,0.05793]
[1764524510322,0.00916387,91536.0,91535.0,0.05793]
[1764524510514,0.05325387,91536.0,91535.0,0.05793]
[1764524510921,0.03152387,91536.0,91535.0,0.05793]
[1764524512425,0.00916387,91536.0,91535.0,0.05793]
[1764524521528,0.03152387,91536.0,91535.0,0.05793]
[1764524522034,0.05325387,91536.0,91535.0,0.05793]
[1764524528539,0.05325387,91536.0,91535.0,0.04504]
[1764524529939,0.05325387,91536.0,91523.0,0.1211]
[1764524529940,0.04409,91529.0,91523.0,0.1211]
[1764524530134,0.04409,91527.0,91526.0,0.05836546]
[1764524531642,0.04809,91527.0,91526.0,0.05836546]
[1764524532428,0.04809,91527.0,91526.0,0.06929206]
[1764524532642,0.04409,91527.0,91526.0,0.06929206]
[1764524532943,0.04909,91527.0,91526.0,0.06929206]
[1764524533441,0.05009,91527.0,91526.0,0.05836546]
[1764524534842,0.05009,91527.0,91526.0,0.01418546]
[1764524535040,0.05009,91527.0,91526.0,0.03587546]
[1764524535241,0.05009,91527.0,91526.0,0.05725546]
[1764524536432,0.04909,91527.0,91526.0,0.05725546]
[1764524536639,0.05009,91527.0,91526.0,0.05725546]
[1764524540650,0.04509,91527.0,91526.0,0.05725546]
[1764524540845,0.05009,91527.0,91526.0,0.05725546]
[1764524541045,0.05109,91527.0,91526.0,0.05725546]
[1764524542646,0.05009,91527.0,91526.0,0.05725546]
[1764524542847,0.05109,91527.0,91526.0,0.05725546]
[1764524543655,0.04509,91527.0,91526.0,0.05725546]
[1764524543849,0.05109,91527.0,91526.0,0.05725546]
[1764524544248,0.05109,91527.0,91526.0,0.01418546]
[1764524544555,0.05109,91527.0,91526.0,0.00907621]
[1764524544556,0.19084327,91527.0,91526.0,0.00907621]
[1764524544750,0.0554975,91518.0,91508.0,0.01361]
[1764524545055,0.4562975,91518.0,91517.0,0.03792296]
[1764524545352,0.4562975,91518.0,91517.0,0.04470387]
[1764524546742,0.4602975,91518.0,91517.0,0.04470387]
[1764524547143,0.4602975,91518.0,91517.0,0.0598016]
[1764524547551,0.4612975,91518.0,91517.0,0.0598016]
[1764524547751,0.4572975,91518.0,91517.0,0.0598016]
[1764524548053,0.4622975,91518.0,91517.0,0.0598016]
[1764524548346,0.4622975,91518.0,91517.0,0.0152616]
[1764524548547,0.57743352,91518.0,91517.0,0.0152616]
[1764524548945,0.57743352,91518.0,91517.0,0.0598016]
[1764524550946,0.57743352,91518.0,91517.0,0.0152616]
[1764524552254,0.76743352,91518.0,91517.0,0.0152616]
[1764524553348,0.76743352,91518.0,91517.0,0.0598016]
[1764524559453,0.79625457,91518.0,91517.0,0.0598016]
[1764524561946,0.96837457,91518.0,91517.0,0.0598016]
[1764524563352,0.96837632,91518.0,91517.0,0.0598016]
[1764524563552,0.96837632,91518.0,91517.0,0.0152616]
[1764524564760,0.93955352,91518.0,91517.0,0.0152616]
[1764524567466,0.57875352,91518.0,91517.0,0.0152616]
[1764524567655,0.93955352,91518.0,91517.0,0.0152616]
[1764524568665,0.93955352,91518.0,91517.0,0.0378416]
[1764524569056,0.93955352,91518.0,91517.0,0.0595716]
[1764524573054,0.93955352,91518.0,91517.0,0.0378416]
[1764524573567,0.96840984,91518.0,91517.0,0.0152616]
[1764524574067,0.96840984,91518.0,91517.0,0.0378416]
[1764524576863,0.96840984,91518.0,91517.0,0.0595716]
[1764524581183,0.93461234,91518.0,91517.0,0.0595716]
[1764524581364,0.91291234,91518.0,91517.0,0.0595716]
[1764524581565,0.71193602,91518.0,91517.0,0.0595716]
[1764524581874,0.75640602,91518.0,91517.0,0.0595716]
[1764524584974,0.52640602,91518.0,91517.0,0.0595716]
[1764524587081,0.3668,91518.0,91517.0,0.0595716]
[1764524589475,0.41127,91518.0,91517.0,0.0595716]
[1764524596787,0.41127,91518.0,91517.0,0.0152616]
[1764524596989,0.44127,91518.0,91517.0,0.0152616]
[1764524598881,0.58579466,91518.0,91517.0,0.0152616]
[1764524601283,0.58579466,91518.0,91517.0,0.0606616]
[1764524601488,0.47020603,91518.0,91517.0,0.0606616]
[1764524602089,0.44020603,91518.0,91517.0,0.0606616]
[1764524602886,0.46020603,91518.0,91517.0,0.0606616]
[1764524604288,0.44020603,91518.0,91517.0,0.0606616]
[1764524604787,0.43127,91518.0,91517.0,0.0606616]
[1764524605591,0.41127,91518.0,91517.0,0.0606616]
[1764524607893,0.05047,91518.0,91517.0,0.0606616]
[1764524610993,0.02856,91518.0,91517.0,0.0606616]
[1764524611289,0.006,91518.0,91517.0,0.4906616]
[1764524614987,0.04403387,91536.0,91535.0,0.0676455]
[1764524615391,0.14147647,91536.0,91535.0,0.0676455]
[1764524615792,0.16344647,91536.0,91535.0,0.0676455]
[1764524616101,0.17344647,91536.0,91535.0,0.0676455]
[1764524616510,0.01116387,91536.0,91535.0,0.0676455]
[1764524617100,0.05503387,91536.0,91535.0,0.0676455]
[1764524619102,0.01116387,91536.0,91535.0,0.0676455]
[1764524626814,0.05688387,91536.0,91535.0,0.0676455]
[1764524628816,0.03418387,91536.0,91535.0,0.0676455]
[1764524629203,0.01116387,91536.0,91535.0,0.0676455]
[1764524638924,0.01116387,91536.0,91535.0,0.4876455]
[1764524640325,0.00157218,91536.0,91535.0,0.4876455]
[1764524646622,0.04729218,91536.0,91535.0,0.2076455]
[1764524647024,0.04729218,91536.0,91535.0,0.2776455]
[1764524648028,0.04729218,91536.0,91535.0,0.0676455]
[1764524649931,0.00157218,91536.0,91535.0,0.0676455]
[1764524650130,0.04729218,91536.0,91535.0,0.0676455]
[1764524651936,0.04729218,91536.0,91535.0,0.4976455]
[1764524652131,0.02459218,91536.0,91535.0,0.4976455]
[1764524653530,0.00157218,91536.0,91535.0,0.4976455]
[1764524653730,0.00157218,91536.0,91535.0,0.0676455]
[1764524653930,0.00157218,91536.0,91535.0,0.2176455]
[1764524658034,0.02333218,91536.0,91535.0,0.2176455]
[1764524658341,0.00157218,91536.0,91535.0,0.4776455]
[1764524660838,0.04632218,91536.0,91535.0,0.0676455]
[1764524661742,0.02333218,91536.0,91535.0,0.0676455]
[1764524662541,0.02333218,91536.0,91535.0,0.4276455]
[1764524662939,0.00157218,91536.0,91535.0,0.4276455]
[1764524664546,0.00157218,91536.0,91535.0,0.2076455]
[1764524664841,0.02433218,91536.0,91535.0,0.2076455]
[1764524665045,0.02433218,91536.0,91535.0,0.0676455]
[1764524669047,0.04682218,91536.0,91535.0,0.0676455]
[1764524671748,0.04682218,91536.0,91535.0,0.05672]
[1764524679554,0.05774758,91536.0,91535.0,0.05672]
[1764524680156,0.04682218,91536.0,91535.0,0.05672]
[1764524684358,0.02433218,91536.0,91535.0,0.05672]
[1764524684748,0.04642218,91536.0,91535.0,0.05672]
[1764524685047,0.07536602,91536.0,91535.0,0.05672]
[1764524685351,0.43616602,91536.0,91535.0,0.05672]
[1764524685857,0.43616712,91536.0,91535.0,0.05672]
[1764524694566,0.07536712,91536.0,91535.0,0.05672]
[1764524694968,0.04642218,91536.0,91535.0,0.05672]
[1764524698761,0.00157218,91536.0,91535.0,0.05672]
[1764524698958,0.04478218,91536.0,91535.0,0.05672]
[1764524700968,0.05570758,91536.0,91535.0,0.05672]
[1764524701471,0.04478218,91536.0,91535.0,0.05672]
[1764524701772,0.001,91536.0,91535.0,0.47672]
[1764524701971,0.3608,91539.0,91538.0,0.04608]
[1764524702165,0.35941157,91539.0,91538.0,0.47608]
[1764524703068,0.36041157,91539.0,91538.0,0.64816]
[1764524705676,0.36041157,91539.0,91538.0,0.76926]
[1764524706966,0.001,91539.0,91538.0,0.76926]
[1764524712374,0.02212,91539.0,91538.0,0.76926]
[1764524712580,0.04421,91539.0,91538.0,0.76926]
[1764524714882,0.04421,91539.0,91538.0,0.59718]
[1764524715087,0.04421,91539.0,91538.0,0.76926]
[1764524717389,0.04421,91539.0,91538.0,0.64816]
[1764524721594,0.02212,91539.0,91538.0,0.64816]
[1764524721791,0.001,91539.0,91538.0,0.64816]
[1764524725804,0.02267,91539.0,91538.0,0.64816]
[1764524726007,0.04469,91539.0,91538.0,0.64816]
[1764524732009,0.02267,91539.0,91538.0,0.64816]
[1764524732205,0.001,91539.0,91538.0,0.64816]
[1764524744617,0.001,91539.0,91538.0,0.21816]
[1764524753217,0.3608,91558.0,91538.0,0.21816]
[1764524753218,0.01273,91569.0,91565.0,0.0134019]
[1764524753416,0.05641303,91566.0,91565.0,0.0134019]
[1764524753730,0.05641303,91566.0,91565.0,0.1855219]
[1764524756430,0.05641303,91566.0,91565.0,0.0134019]
[1764524759828,0.05641303,91566.0,91565.0,0.0109219]
[1764524760131,0.05641303,91566.0,91565.0,0.0121619]
[1764524762730,0.06733483,91566.0,91565.0,0.0109219]
[1764524762929,0.05641303,91566.0,91565.0,0.0109219]
[1764524764532,0.05641303,91566.0,91565.0,0.0121619]
[1764524764928,0.05641303,91566.0,91565.0,0.0134019]
[1764524767839,0.00027303,91566.0,91565.0,0.0134019]
[1764524768233,0.05614,91575.0,91574.0,0.0134008]
[1764524768433,0.05614,91575.0,91574.0,0.3742008]
[1764524769338,0.0328836,91575.0,91574.0,0.3742008]
[1764524771940,0.05614,91580.0,91579.0,0.0539603]
[1764524772141,0.04341,91580.0,91579.0,0.0539603]
[1764524772628,0.05614,91580.0,91579.0,0.0539603]
[1764524778746,0.05614,91580.0,91579.0,0.4147603]
[1764524779247,0.05549,91588.0,91587.0,0.0547993]
[1764524779949,0.05549,91588.0,91587.0,0.04388]
[1764524780747,0.04276,91585.0,91584.0,0.0330696]
[1764524780942,0.04276,91585.0,91584.0,0.0547996]
[1764524792065,0.04276,91585.0,91581.0,0.3608]
[1764524792264,0.0444,91582.0,91581.0,0.40351]
[1764524792466,0.0444,91582.0,91581.0,0.57555]
[1764524802383,0.0444,91582.0,91581.0,0.58647]
[1764524804777,0.0444,91582.0,91581.0,0.79647]
[1764524806684,0.0444,91582.0,91581.0,0.79643]
[1764524808487,0.0444,91582.0,91581.0,0.78551]
[1764524815688,0.0553199,91582.0,91581.0,0.5708]
[1764524815894,0.0546403,91579.0,91578.0,0.00016378]
[1764524816095,0.09977306,91579.0,91578.0,0.00016378]
[1764524816295,0.20937244,91579.0,91578.0,0.02250378]
[1764524816494,0.20937244,91579.0,91578.0,0.04430378]
[1764524816895,0.20937244,91579.0,91578.0,0.02250378]
[1764524817191,0.20937244,91579.0,91578.0,0.00016378]
[1764524818195,0.20937244,91579.0,91578.0,0.02250378]
[1764524818396,0.08270386,91579.0,91578.0,0.04430378]
[1764524818893,0.07178356,91579.0,91578.0,0.04430378]
[1764524819097,0.04372,91579.0,91578.0,0.04430378]
[1764524819993,0.04372,91579.0,91578.0,0.82510378]
[1764524820196,0.04372,91579.0,91578.0,0.50510378]
[1764524822400,0.04372,91579.0,91578.0,0.48330378]
[1764524822595,0.04372,91579.0,91578.0,0.50510378]
[1764524822901,0.04372,91579.0,91578.0,0.51602418]
[1764524824201,0.04372,91579.0,91578.0,0.50510378]
[1764524824994,0.07177817,91579.0,91578.0,0.50510378]
[1764524825295,0.07177817,91579.0,91578.0,0.79510378]
[1764524825500,0.07177817,91579.0,91578.0,0.42510378]
[1764524827598,0.07177817,91579.0,91578.0,0.38330378]
[1764524827798,0.07177817,91579.0,91578.0,0.36096378]
[1764524829305,0.0546414,91569.0,91568.0,0.3608]
[1764524829498,0.08269957,91569.0,91568.0,0.3608]
[1764524829705,0.023633,91556.0,91555.0,0.04414]
[1764524829903,0.09539931,91556.0,91555.0,0.06414]
[1764524830298,0.067353,91556.0,91555.0,0.06414]
[1764524830598,0.067353,91556.0,91555.0,0.02234]